[Event "Early-Titled-Tuesday-Blitz-May-14-2024"]
[Site "Chess.com"]
[Date "2024.05.14"]
[Round "2"]
[White "Chess4always"]
[Black "David_ATM"]
[Result "0-1"]
[WhiteElo "2029"]
[BlackElo "2456"]
[TimeControl "180+1"]
[EndTime "8:19:17 PDT"]
[Termination "David_ATM won by resignation"]

1. d4 {[%clk 0:03:00.9]} 1... d5 {[%clk 0:02:59.8]} 2. Nf3 {[%clk 0:03:00.6]}
2... c6 {[%clk 0:03:00.7]} 3. c3 {[%clk 0:02:59.8]} 3... Nf6 {[%clk 0:03:01.6]}
4. Bg5 {[%clk 0:03:00]} 4... Bf5 {[%clk 0:03:01.9]} 5. Bxf6 {[%clk 0:03:00.6]}
5... exf6 {[%clk 0:02:59.3]} 6. Nbd2 {[%clk 0:03:01.5]} 6... Nd7 {[%clk
0:02:58.6]} 7. Nh4 {[%clk 0:03:01.5]} 7... Be4 {[%clk 0:02:54.5]} 8. e3 {[%clk
0:02:59.9]} 8... Bd6 {[%clk 0:02:43.2]} 9. Nhf3 {[%clk 0:02:59.8]} 9... h6
{[%clk 0:02:41.9]} 10. Qb3 {[%clk 0:02:59.8]} 10... Qb6 {[%clk 0:02:40.9]} 11.
Qxb6 {[%clk 0:02:59.6]} 11... Nxb6 {[%clk 0:02:41.1]} 12. c4 {[%clk 0:03:00.3]}
12... Bxf3 {[%clk 0:02:34.1]} 13. gxf3 {[%clk 0:02:56.9]} 13... dxc4 {[%clk
0:02:31.2]} 14. Nxc4 {[%clk 0:02:56.7]} 14... Bb4+ {[%clk 0:02:26.6]} 15. Kd1
{[%clk 0:02:55.2]} 15... Nd7 {[%clk 0:02:19]} 16. a3 {[%clk 0:02:54.8]} 16...
Be7 {[%clk 0:02:17.9]} 17. Bd3 {[%clk 0:02:54.9]} 17... g6 {[%clk 0:02:16.8]}
18. h4 {[%clk 0:02:54.1]} 18... h5 {[%clk 0:02:16.8]} 19. f4 {[%clk 0:02:54.4]}
19... f5 {[%clk 0:02:17]} 20. Ke2 {[%clk 0:02:53.1]} 20... O-O-O {[%clk
0:02:09.6]} 21. b4 {[%clk 0:02:53.1]} 21... Rhe8 {[%clk 0:02:01.9]} 22. Rhd1
{[%clk 0:02:52.2]} 22... Kc7 {[%clk 0:01:58.5]} 23. Rac1 {[%clk 0:02:49.1]}
23... Bxh4 {[%clk 0:01:45.8]} 24. Ne5 {[%clk 0:02:42.5]} 24... Nxe5 {[%clk
0:01:44.4]} 25. dxe5 {[%clk 0:02:43.4]} 25... f6 {[%clk 0:01:16.6]} 26. exf6
{[%clk 0:02:43]} 26... Bxf6 {[%clk 0:01:17.5]} 27. Rg1 {[%clk 0:02:40.3]} 27...
Rg8 {[%clk 0:01:16.4]} 28. Rc2 {[%clk 0:02:36.8]} 28... h4 {[%clk 0:01:13.9]}
29. Rg2 {[%clk 0:02:33.2]} 29... g5 {[%clk 0:00:30.1]} 30. fxg5 {[%clk
0:02:32.6]} 30... f4 {[%clk 0:00:22.6]} 31. exf4 {[%clk 0:02:08.5]} 31... Rge8+
{[%clk 0:00:17.2]} 32. Kd2 {[%clk 0:02:08.5]} 32... Bd4 {[%clk 0:00:17.5]} 33.
Rc4 {[%clk 0:02:02.4]} 33... Bb2 {[%clk 0:00:17.2]} 34. a4 {[%clk 0:01:58.6]}
34... Rd5 {[%clk 0:00:13.4]} 35. Kc2 {[%clk 0:01:58.7]} 35... Bd4 {[%clk
0:00:13.1]} 36. f3 {[%clk 0:01:47.4]} 36... Red8 {[%clk 0:00:13.5]} 37. Be4
{[%clk 0:01:45.5]} 37... R5d6 {[%clk 0:00:13.9]} 38. f5 {[%clk 0:01:37.8]} 38...
Be5 {[%clk 0:00:13.4]} 39. Kb3 {[%clk 0:01:00.5]} 39... h3 {[%clk 0:00:13.5]}
40. Rg1 {[%clk 0:01:00.3]} 40... h2 {[%clk 0:00:13.1]} 41. Rh1 {[%clk
0:00:59.6]} 41... Rd1 {[%clk 0:00:13.7]} 42. Rc1 {[%clk 0:01:00]} 42... R1d2
{[%clk 0:00:03.1]} 43. f6 {[%clk 0:00:56]} 43... Rb2+ {[%clk 0:00:03.3]} 44. Ka3
{[%clk 0:00:55.8]} 44... Rdd2 {[%clk 0:00:02.6]} 45. f7 {[%clk 0:00:47.1]} 45...
Ra2+ {[%clk 0:00:01.6]} 46. Kb3 {[%clk 0:00:47.8]} 46... Rdb2+ {[%clk
0:00:02.4]} 47. Kc4 {[%clk 0:00:47.9]} 47... Bg7 {[%clk 0:00:03.3]} 48. f4
{[%clk 0:00:36]} 48... Rxa4 {[%clk 0:00:03.9]} 49. Bf5 {[%clk 0:00:25.6]} 49...
Raxb4+ {[%clk 0:00:04.3]} 50. Kd3 {[%clk 0:00:25.7]} 50... R2b3+ {[%clk
0:00:04.6]} 51. Ke2 {[%clk 0:00:26.1]} 51... Rb2+ {[%clk 0:00:05]} 52. Kf3
{[%clk 0:00:26.1]} 52... R4b3+ {[%clk 0:00:05.4]} 53. Kg4 {[%clk 0:00:26.6]}
53... a5 {[%clk 0:00:04.1]} 54. Rce1 {[%clk 0:00:26.4]} 54... a4 {[%clk
0:00:03.6]} 55. Re7+ {[%clk 0:00:26.2]} 55... Kb6 {[%clk 0:00:04]} 56. Re8
{[%clk 0:00:24.7]} 56... a3 {[%clk 0:00:04.2]} 57. f8=Q {[%clk 0:00:24.6]} 57...
Bxf8 {[%clk 0:00:04.6]} 58. Rxf8 {[%clk 0:00:25.5]} 58... a2 {[%clk 0:00:05]}
59. Ra8 {[%clk 0:00:26.2]} 59... Rb5 {[%clk 0:00:04.6]} 60. Kh3 {[%clk
0:00:21.9]} 60... Rxf5 {[%clk 0:00:03.7]} 61. Rxh2 {[%clk 0:00:20.9]} 61...
Rxh2+ {[%clk 0:00:02.7]} 62. Kxh2 {[%clk 0:00:21.8]} 62... Rxf4 {[%clk
0:00:02.7]} 63. Rxa2 {[%clk 0:00:21.8]} 63... Rg4 {[%clk 0:00:03.3]} 64. Rb2+
{[%clk 0:00:21.1]} 64... Kc7 {[%clk 0:00:03.8]} 65. Rg2 {[%clk 0:00:21]} 65...
Rxg2+ {[%clk 0:00:03.7]} 66. Kxg2 {[%clk 0:00:21.9]} 66... Kd6 {[%clk
0:00:04.3]} 67. Kg3 {[%clk 0:00:22.5]} 67... Ke6 {[%clk 0:00:05]} 68. Kg4 {[%clk
0:00:22.9]} 68... Kf7 {[%clk 0:00:05.9]} 69. Kf5 {[%clk 0:00:22.7]} 69... Kg7
{[%clk 0:00:06.6]} 70. Ke5 {[%clk 0:00:19.9]} 70... b5 {[%clk 0:00:07.5]} 71.
Kd4 {[%clk 0:00:18.8]} 71... Kg6 {[%clk 0:00:08.4]} 72. Kc5 {[%clk 0:00:19.6]}
72... Kxg5 {[%clk 0:00:08.9]} 73. Kxc6 {[%clk 0:00:20.2]} 73... b4 {[%clk
0:00:09.5]} 74. Kb5 {[%clk 0:00:21.1]} 74... b3 {[%clk 0:00:10.4]} 0-1

[Event "Early-Titled-Tuesday-Blitz-May-14-2024"]
[Site "Chess.com"]
[Date "2024.05.14"]
[Round "2"]
[White "CarlosjPineror"]
[Black "laiciffOneslraCsungaM"]
[Result "0-1"]
[WhiteElo "2724"]
[BlackElo "2410"]
[TimeControl "180+1"]
[EndTime "8:19:18 PDT"]
[Termination "laiciffOneslraCsungaM won by resignation"]

1. e4 {[%clk 0:03:00.9]} 1... e6 {[%clk 0:03:00.4]} 2. d3 {[%clk 0:02:53.6]}
2... d5 {[%clk 0:03:01.3]} 3. Nd2 {[%clk 0:02:54.1]} 3... Nf6 {[%clk 0:02:49.9]}
4. Ngf3 {[%clk 0:02:52.6]} 4... Nc6 {[%clk 0:02:32.1]} 5. c3 {[%clk 0:02:50]}
5... Bd6 {[%clk 0:02:27.8]} 6. g3 {[%clk 0:02:41.1]} 6... dxe4 {[%clk
0:02:23.9]} 7. dxe4 {[%clk 0:02:40.9]} 7... e5 {[%clk 0:02:24.5]} 8. Bg2 {[%clk
0:02:41]} 8... O-O {[%clk 0:02:22.4]} 9. Qe2 {[%clk 0:02:40.5]} 9... a5 {[%clk
0:02:06.8]} 10. O-O {[%clk 0:02:39.5]} 10... a4 {[%clk 0:02:06.5]} 11. Rd1
{[%clk 0:02:39.1]} 11... Qe7 {[%clk 0:02:03]} 12. h3 {[%clk 0:02:35.6]} 12... b6
{[%clk 0:02:01.4]} 13. Qe1 {[%clk 0:02:32]} 13... Ba6 {[%clk 0:01:56]} 14. Bf1
{[%clk 0:02:30.7]} 14... Bxf1 {[%clk 0:01:51]} 15. Nxf1 {[%clk 0:02:30.8]} 15...
h6 {[%clk 0:01:49.9]} 16. Nh4 {[%clk 0:02:23]} 16... Bc5 {[%clk 0:01:45.1]} 17.
Nf5 {[%clk 0:02:19.6]} 17... Qe6 {[%clk 0:01:45.5]} 18. Qe2 {[%clk 0:02:12.7]}
18... Ne7 {[%clk 0:01:43.5]} 19. g4 {[%clk 0:01:52.5]} 19... Ng6 {[%clk
0:01:38]} 20. Qf3 {[%clk 0:01:47.3]} 20... Nf4 {[%clk 0:01:30]} 21. Re1 {[%clk
0:01:28.7]} 21... Rfe8 {[%clk 0:01:03.1]} 22. Bxf4 {[%clk 0:01:27]} 22... exf4
{[%clk 0:01:04]} 23. e5 {[%clk 0:01:27.5]} 23... Nd5 {[%clk 0:01:00.9]} 24. a3
{[%clk 0:01:22.7]} 24... Rad8 {[%clk 0:00:49.8]} 25. Rad1 {[%clk 0:01:18.9]}
25... g5 {[%clk 0:00:44.9]} 26. Nd2 {[%clk 0:01:09.9]} 26... Ne7 {[%clk
0:00:44.8]} 27. Nxe7+ {[%clk 0:01:07.6]} 27... Qxe7 {[%clk 0:00:45.4]} 28. Nc4
{[%clk 0:01:03.8]} 28... Rxd1 {[%clk 0:00:44]} 29. Rxd1 {[%clk 0:01:03.5]} 29...
Rd8 {[%clk 0:00:35.3]} 30. Kf1 {[%clk 0:00:53.1]} 30... b5 {[%clk 0:00:33.7]}
31. Rxd8+ {[%clk 0:00:46.3]} 31... Qxd8 {[%clk 0:00:33.4]} 32. Na5 {[%clk
0:00:47]} 32... Qd2 {[%clk 0:00:30.3]} 33. Nb7 {[%clk 0:00:41.8]} 33... Bb6
{[%clk 0:00:29.1]} 34. Kg2 {[%clk 0:00:38.6]} 34... Qxb2 {[%clk 0:00:28.7]} 35.
Nd8 {[%clk 0:00:36.1]} 35... Qxa3 {[%clk 0:00:24.8]} 36. Qd5 {[%clk 0:00:35.4]}
36... Qe7 {[%clk 0:00:25.3]} 37. e6 {[%clk 0:00:32.9]} 37... fxe6 {[%clk
0:00:16.3]} 38. Nxe6 {[%clk 0:00:33.2]} 38... Qd6 {[%clk 0:00:12.2]} 39. Qe4
{[%clk 0:00:30]} 39... Kf7 {[%clk 0:00:08.7]} 40. Qf5+ {[%clk 0:00:30.1]} 40...
Ke7 {[%clk 0:00:08.5]} 41. Nf8 {[%clk 0:00:25.5]} 41... Qc5 {[%clk 0:00:06]} 42.
Ng6+ {[%clk 0:00:23.6]} 42... Kd6 {[%clk 0:00:03.9]} 43. Qf8+ {[%clk 0:00:21.2]}
43... Kc6 {[%clk 0:00:04]} 44. Qf6+ {[%clk 0:00:20]} 44... Kb7 {[%clk
0:00:04.2]} 45. Kf3 {[%clk 0:00:13.3]} 45... Qxf2+ {[%clk 0:00:04.3]} 46. Ke4
{[%clk 0:00:14.2]} 46... Qe3+ {[%clk 0:00:04.8]} 47. Kf5 {[%clk 0:00:14.6]}
47... Qd3+ {[%clk 0:00:05.4]} 48. Ke6 {[%clk 0:00:14.5]} 48... Qe4+ {[%clk
0:00:04.6]} 49. Kf7 {[%clk 0:00:13.7]} 49... Qc6 {[%clk 0:00:05.1]} 50. Qe5
{[%clk 0:00:10.4]} 50... Qc5 {[%clk 0:00:04.4]} 51. Qe4+ {[%clk 0:00:09.4]}
51... Qc6 {[%clk 0:00:05]} 52. Qe5 {[%clk 0:00:10.1]} 52... a3 {[%clk
0:00:05.5]} 53. Ne7 {[%clk 0:00:08.7]} 53... Qc4+ {[%clk 0:00:05]} 54. Ke8
{[%clk 0:00:07.4]} 54... a2 {[%clk 0:00:05.9]} 55. Qf5 {[%clk 0:00:05.8]} 55...
a1=Q {[%clk 0:00:05]} 56. Qc8+ {[%clk 0:00:06.4]} 56... Ka7 {[%clk 0:00:05.6]}
57. Qd7 {[%clk 0:00:05.7]} 57... Qaxc3 {[%clk 0:00:04.2]} 58. Nc8+ {[%clk
0:00:04.3]} 58... Kb8 {[%clk 0:00:03.6]} 59. Nxb6 {[%clk 0:00:02.4]} 59... cxb6
{[%clk 0:00:03.4]} 0-1

[Event "Early-Titled-Tuesday-Blitz-May-14-2024"]
[Site "Chess.com"]
[Date "2024.05.14"]
[Round "2"]
[White "ccccvhhhj"]
[Black "SujanaLohani"]
[Result "1-0"]
[WhiteElo "2451"]
[BlackElo "1950"]
[TimeControl "180+1"]
[EndTime "8:19:18 PDT"]
[Termination "ccccvhhhj won by checkmate"]

1. e4 {[%clk 0:03:00.9]} 1... c5 {[%clk 0:02:58.3]} 2. Nf3 {[%clk 0:03:01]} 2...
g6 {[%clk 0:02:57.7]} 3. d4 {[%clk 0:03:00.9]} 3... cxd4 {[%clk 0:02:57.7]} 4.
Nxd4 {[%clk 0:03:01.8]} 4... Nc6 {[%clk 0:02:57.3]} 5. Nc3 {[%clk 0:03:02.3]}
5... Bg7 {[%clk 0:02:56.3]} 6. Be3 {[%clk 0:03:02.9]} 6... Nf6 {[%clk
0:02:55.9]} 7. Nxc6 {[%clk 0:03:02.7]} 7... bxc6 {[%clk 0:02:53]} 8. e5 {[%clk
0:03:03.2]} 8... Ng8 {[%clk 0:02:52.7]} 9. Bd4 {[%clk 0:03:03.7]} 9... Nh6
{[%clk 0:02:48.3]} 10. e6 {[%clk 0:03:03.8]} 10... O-O {[%clk 0:02:47.3]} 11.
Bxg7 {[%clk 0:03:03.3]} 11... Kxg7 {[%clk 0:02:48.2]} 12. exd7 {[%clk
0:03:04.2]} 12... Bxd7 {[%clk 0:02:46.6]} 13. Qd4+ {[%clk 0:03:02.9]} 13... f6
{[%clk 0:02:33.8]} 14. O-O-O {[%clk 0:03:03.2]} 14... Bg4 {[%clk 0:02:34]} 15.
f3 {[%clk 0:02:57.1]} 15... Qxd4 {[%clk 0:02:16.7]} 16. Rxd4 {[%clk 0:02:58]}
16... Be6 {[%clk 0:02:16.5]} 17. Ba6 {[%clk 0:02:49.1]} 17... Bf7 {[%clk
0:02:11.7]} 18. Bb7 {[%clk 0:02:33.6]} 18... Nf5 {[%clk 0:02:04.1]} 19. Rd7
{[%clk 0:02:23.5]} 19... Rad8 {[%clk 0:01:50.6]} 20. Bxc6 {[%clk 0:02:22.2]}
20... Nd4 {[%clk 0:01:33.5]} 21. Rxd8 {[%clk 0:02:20.3]} 21... Rxd8 {[%clk
0:01:31.2]} 22. Be4 {[%clk 0:02:20.5]} 22... e5 {[%clk 0:01:21.3]} 23. b3 {[%clk
0:02:12.4]} 23... Rc8 {[%clk 0:01:18.1]} 24. Kb2 {[%clk 0:02:12.8]} 24... f5
{[%clk 0:01:15.7]} 25. Bd3 {[%clk 0:02:10.9]} 25... Kf6 {[%clk 0:00:56.8]} 26.
a4 {[%clk 0:02:10.7]} 26... Rb8 {[%clk 0:00:54.1]} 27. Rc1 {[%clk 0:01:38.4]}
27... h5 {[%clk 0:00:39.3]} 28. Ne2 {[%clk 0:01:29]} 28... Nc6 {[%clk
0:00:20.5]} 29. Bb5 {[%clk 0:01:23.7]} 29... Ne7 {[%clk 0:00:18.2]} 30. Rd1
{[%clk 0:01:22]} 30... Bd5 {[%clk 0:00:18.3]} 31. Nc3 {[%clk 0:01:21.4]} 31...
Bb7 {[%clk 0:00:17.5]} 32. Rd6+ {[%clk 0:01:20.5]} 32... Kg7 {[%clk 0:00:14.3]}
33. Rd7 {[%clk 0:01:20.4]} 33... Kf6 {[%clk 0:00:13.6]} 34. Bc4 {[%clk
0:01:16.6]} 34... a6 {[%clk 0:00:12.3]} 35. Rd6+ {[%clk 0:01:14.2]} 35... Kg7
{[%clk 0:00:11]} 36. Re6 {[%clk 0:01:14.2]} 36... Nc6 {[%clk 0:00:09.9]} 37. Bd5
{[%clk 0:01:09.2]} 37... Rc8 {[%clk 0:00:05.6]} 38. Bxc6 {[%clk 0:01:06.6]}
38... Bxc6 {[%clk 0:00:06.1]} 39. Rxe5 {[%clk 0:01:06.6]} 39... Kf6 {[%clk
0:00:06.5]} 40. Rc5 {[%clk 0:01:01.6]} 40... Ke6 {[%clk 0:00:05.7]} 41. Rc4
{[%clk 0:00:58.2]} 41... Kd6 {[%clk 0:00:05.2]} 42. Rd4+ {[%clk 0:00:57.4]}
42... Ke5 {[%clk 0:00:04.5]} 43. Rd1 {[%clk 0:00:57.5]} 43... Kf6 {[%clk
0:00:03.3]} 44. b4 {[%clk 0:00:53.6]} 44... h4 {[%clk 0:00:01.1]} 45. h3 {[%clk
0:00:53.2]} 45... g5 {[%clk 0:00:00.6]} 46. Kb3 {[%clk 0:00:53.9]} 46... Ke7
{[%clk 0:00:01.1]} 47. b5 {[%clk 0:00:53.4]} 47... Bd7 {[%clk 0:00:02]} 48. b6
{[%clk 0:00:42.3]} 48... Rb8 {[%clk 0:00:02.9]} 49. a5 {[%clk 0:00:42.5]} 49...
Be6+ {[%clk 0:00:03.4]} 50. Kb4 {[%clk 0:00:41.2]} 50... Rc8 {[%clk 0:00:02.9]}
51. Nd5+ {[%clk 0:00:39.9]} 51... Bxd5 {[%clk 0:00:02.1]} 52. Rxd5 {[%clk
0:00:39.7]} 52... Rxc2 {[%clk 0:00:01.7]} 53. Rxf5 {[%clk 0:00:37.7]} 53... Rxg2
{[%clk 0:00:02.1]} 54. Rc5 {[%clk 0:00:31.5]} 54... Rb2+ {[%clk 0:00:02.3]} 55.
Kc4 {[%clk 0:00:31.7]} 55... Rf2 {[%clk 0:00:01.4]} 56. Rc7+ {[%clk 0:00:31.2]}
56... Kd6 {[%clk 0:00:00.7]} 57. Rg7 {[%clk 0:00:30.8]} 57... Rxf3 {[%clk
0:00:01.3]} 58. Rxg5 {[%clk 0:00:29.3]} 58... Rxh3 {[%clk 0:00:02]} 59. Rg6+
{[%clk 0:00:28.7]} 59... Kd7 {[%clk 0:00:01.4]} 60. Rg7+ {[%clk 0:00:29.3]}
60... Kc8 {[%clk 0:00:01.7]} 61. Ra7 {[%clk 0:00:30.2]} 61... Kb8 {[%clk
0:00:01.7]} 62. Rxa6 {[%clk 0:00:29.8]} 62... Rh1 {[%clk 0:00:02.4]} 63. Ra7
{[%clk 0:00:30.1]} 63... Rc1+ {[%clk 0:00:02.7]} 64. Kb5 {[%clk 0:00:29.3]}
64... h3 {[%clk 0:00:01.8]} 65. Rh7 {[%clk 0:00:28.9]} 65... h2 {[%clk
0:00:01.4]} 66. Rh8+ {[%clk 0:00:26.3]} 66... Kb7 {[%clk 0:00:00.1]} 67. a6#
{[%clk 0:00:26.1]} 1-0

[Event "Early-Titled-Tuesday-Blitz-May-14-2024"]
[Site "Chess.com"]
[Date "2024.05.14"]
[Round "2"]
[White "MatthewG-p4p"]
[Black "manmanlai1"]
[Result "0-1"]
[WhiteElo "2828"]
[BlackElo "2596"]
[TimeControl "180+1"]
[EndTime "8:19:19 PDT"]
[Termination "manmanlai1 won by resignation"]

1. e4 {[%clk 0:02:59.5]} 1... c5 {[%clk 0:03:00]} 2. c3 {[%clk 0:02:58.3]} 2...
e6 {[%clk 0:02:50.3]} 3. d4 {[%clk 0:02:58]} 3... d5 {[%clk 0:02:47.2]} 4. e5
{[%clk 0:02:57.8]} 4... Qb6 {[%clk 0:02:45]} 5. Nf3 {[%clk 0:02:57.7]} 5... Bd7
{[%clk 0:02:45.5]} 6. Be2 {[%clk 0:02:42.5]} 6... Bb5 {[%clk 0:02:45.8]} 7. dxc5
{[%clk 0:02:41.9]} 7... Bxc5 {[%clk 0:02:39.5]} 8. b4 {[%clk 0:02:36.3]} 8...
Bxe2 {[%clk 0:02:19.3]} 9. Qxe2 {[%clk 0:02:37.2]} 9... Bf8 {[%clk 0:02:17.6]}
10. O-O {[%clk 0:02:11.7]} 10... Nd7 {[%clk 0:02:17.6]} 11. Be3 {[%clk
0:01:56.5]} 11... Qc7 {[%clk 0:02:16.7]} 12. Bd4 {[%clk 0:01:56.6]} 12... Ne7
{[%clk 0:02:14.1]} 13. Na3 {[%clk 0:01:56.1]} 13... a6 {[%clk 0:02:12.4]} 14.
Nc2 {[%clk 0:01:52.3]} 14... Nf5 {[%clk 0:02:09.3]} 15. Rac1 {[%clk 0:01:35.8]}
15... Be7 {[%clk 0:02:08.3]} 16. Ne3 {[%clk 0:01:34.4]} 16... Nxe3 {[%clk
0:02:07.1]} 17. fxe3 {[%clk 0:01:27.7]} 17... O-O {[%clk 0:02:05.7]} 18. e4
{[%clk 0:01:26.3]} 18... Nb6 {[%clk 0:01:55.2]} 19. exd5 {[%clk 0:01:22.5]}
19... Nxd5 {[%clk 0:01:53.8]} 20. Qe4 {[%clk 0:01:16.8]} 20... Rac8 {[%clk
0:01:50.4]} 21. a4 {[%clk 0:01:14.5]} 21... a5 {[%clk 0:01:46.9]} 22. b5 {[%clk
0:01:08.5]} 22... Qc4 {[%clk 0:01:46.4]} 23. Qc2 {[%clk 0:01:02.8]} 23... Bc5
{[%clk 0:01:42.2]} 24. Bxc5 {[%clk 0:00:44.2]} 24... Qxc5+ {[%clk 0:01:41.3]}
25. Qf2 {[%clk 0:00:43.6]} 25... Qxf2+ {[%clk 0:01:38.9]} 26. Kxf2 {[%clk
0:00:36.8]} 26... Nxc3 {[%clk 0:01:33.9]} 27. Ra1 {[%clk 0:00:37.4]} 27... Rfd8
{[%clk 0:01:32]} 28. Rfc1 {[%clk 0:00:36.4]} 28... h6 {[%clk 0:01:26.1]} 29. Ke3
{[%clk 0:00:31.7]} 29... Kf8 {[%clk 0:01:26.1]} 30. h3 {[%clk 0:00:30.3]} 30...
Ke7 {[%clk 0:01:25.4]} 31. h4 {[%clk 0:00:30.8]} 31... g6 {[%clk 0:01:23.6]} 32.
Kf2 {[%clk 0:00:27.3]} 32... b6 {[%clk 0:01:18.8]} 33. Kf1 {[%clk 0:00:24.4]}
33... Rc5 {[%clk 0:01:16.6]} 34. Re1 {[%clk 0:00:19.7]} 34... Rd3 {[%clk
0:01:08.7]} 35. Ra3 {[%clk 0:00:19.1]} 35... Rdd5 {[%clk 0:01:06.6]} 36. Re3
{[%clk 0:00:17.1]} 36... Nd1 {[%clk 0:01:04.2]} 37. Re1 {[%clk 0:00:16.5]} 37...
Nb2 {[%clk 0:01:03.2]} 38. Rb1 {[%clk 0:00:16.4]} 38... Nc4 {[%clk 0:01:01.5]}
39. Ra2 {[%clk 0:00:14.4]} 39... Nxe5 {[%clk 0:01:01.1]} 40. Nxe5 {[%clk
0:00:13.7]} 40... Rxe5 {[%clk 0:01:01.3]} 41. Rd2 {[%clk 0:00:13.8]} 41... Re4
{[%clk 0:00:53.3]} 42. Rbd1 {[%clk 0:00:13.4]} 42... Rxa4 {[%clk 0:00:53.5]} 43.
Rd7+ {[%clk 0:00:13.4]} 43... Kf6 {[%clk 0:00:53.4]} 44. Rb7 {[%clk 0:00:14.3]}
44... Rxb5 {[%clk 0:00:52.9]} 45. Kg1 {[%clk 0:00:12.9]} 45... Kg7 {[%clk
0:00:50.7]} 46. Rdd7 {[%clk 0:00:11.5]} 46... Rf5 {[%clk 0:00:50.2]} 47. Rxb6
{[%clk 0:00:11.6]} 47... Rxh4 {[%clk 0:00:50.3]} 48. Ra6 {[%clk 0:00:12]} 48...
a4 {[%clk 0:00:50.4]} 49. Rxe6 {[%clk 0:00:11.9]} 49... Ra5 {[%clk 0:00:47.3]}
50. Ree7 {[%clk 0:00:12.3]} 50... Rf4 {[%clk 0:00:47.5]} 51. Rd2 {[%clk
0:00:13]} 51... a3 {[%clk 0:00:47.1]} 52. Ra2 {[%clk 0:00:13.9]} 52... Rf6
{[%clk 0:00:42.9]} 53. Re3 {[%clk 0:00:14.2]} 53... Rfa6 {[%clk 0:00:42.2]} 54.
Rf3 {[%clk 0:00:14.6]} 54... Ra4 {[%clk 0:00:42]} 55. Rb3 {[%clk 0:00:15.2]}
55... Ra7 {[%clk 0:00:42.4]} 56. Re3 {[%clk 0:00:15.5]} 56... h5 {[%clk
0:00:42.8]} 57. Rb3 {[%clk 0:00:15.7]} 57... f6 {[%clk 0:00:42.8]} 58. Rg3
{[%clk 0:00:15.8]} 58... g5 {[%clk 0:00:43]} 59. Rb3 {[%clk 0:00:16.6]} 59...
Kg6 {[%clk 0:00:43.4]} 60. Rf3 {[%clk 0:00:17]} 60... h4 {[%clk 0:00:43.4]} 61.
Rb3 {[%clk 0:00:17.5]} 61... R7a6 {[%clk 0:00:43.7]} 62. Rf3 {[%clk 0:00:18]}
62... g4 {[%clk 0:00:42.8]} 63. Rb3 {[%clk 0:00:18.7]} 63... Kg5 {[%clk
0:00:40.5]} 64. Kh2 {[%clk 0:00:18.4]} 64... f5 {[%clk 0:00:36.9]} 65. Rc3
{[%clk 0:00:17.6]} 65... Re6 {[%clk 0:00:33.2]} 66. Raxa3 {[%clk 0:00:17.7]}
66... Rxa3 {[%clk 0:00:32.8]} 67. Rxa3 {[%clk 0:00:18.6]} 67... Re1 {[%clk
0:00:32.6]} 68. g3 {[%clk 0:00:10]} 68... Re2+ {[%clk 0:00:30.5]} 69. Kg1 {[%clk
0:00:09.8]} 69... hxg3 {[%clk 0:00:30.7]} 70. Rxg3 {[%clk 0:00:10.7]} 70... f4
{[%clk 0:00:30.9]} 71. Rb3 {[%clk 0:00:11.2]} 71... f3 {[%clk 0:00:30.6]} 72.
Kf1 {[%clk 0:00:08.9]} 72... Kh4 {[%clk 0:00:29.9]} 73. Rb6 {[%clk 0:00:08.7]}
73... Kg3 {[%clk 0:00:30.1]} 74. Rb1 {[%clk 0:00:08.9]} 74... Ra2 {[%clk
0:00:30.5]} 75. Kg1 {[%clk 0:00:09.1]} 75... Rg2+ {[%clk 0:00:30.4]} 76. Kh1
{[%clk 0:00:09.9]} 76... Rh2+ {[%clk 0:00:30.6]} 77. Kg1 {[%clk 0:00:10.8]}
77... f2+ {[%clk 0:00:31]} 78. Kf1 {[%clk 0:00:11.7]} 78... Rh1+ {[%clk
0:00:31.3]} 0-1